bitfinex/quotes_BTCUSD_20260117
["timestamp","ask_amount","ask_price","bid_price","bid_amount"]
[1768651837683,0.01049758,95260.0,95255.0,0.01049813]
[1768651837886,0.01049769,95259.0,95255.0,0.01049813]
[1768651838094,0.01049758,95260.0,95255.0,0.01049813]
[1768651838250,0.01049758,95260.0,95256.0,0.01049802]
[1768651839587,0.01049758,95260.0,95255.0,0.01049813]
[1768651840054,0.01049758,95260.0,95256.0,0.01049802]
[1768651841143,0.01049758,95260.0,95255.0,0.01049813]
[1768651842126,0.01049769,95259.0,95255.0,0.01049813]
[1768651845081,0.13769736,95262.0,95257.0,0.01049791]
[1768651846510,0.01049747,95261.0,95256.0,0.01049802]
[1768651848260,0.01049758,95260.0,95256.0,0.01049802]
[1768651849262,0.01049747,95261.0,95257.0,0.01049791]
[1768651849456,0.01049758,95260.0,95256.0,0.01049802]
[1768651850034,0.01049747,95261.0,95257.0,0.01049791]
[1768651850235,0.01049758,95260.0,95256.0,0.01049802]
[1768651850505,0.01049747,95261.0,95256.0,0.01049802]
[1768651850697,0.01049747,95261.0,95257.0,0.01049791]
[1768651850902,0.01049747,95261.0,95254.0,0.01049824]
[1768651851107,0.01049747,95261.0,95256.0,0.01049802]
[1768651852635,0.01049758,95260.0,95254.0,0.01049824]
[1768651853205,0.01049769,95259.0,95255.0,0.01049813]
[1768651853631,0.01049758,95260.0,95254.0,0.01049824]
[1768651853836,0.01049758,95260.0,95255.0,0.01049813]
[1768651854042,0.01049758,95260.0,95256.0,0.01049802]
[1768651854192,0.01049747,95261.0,95256.0,0.01049802]
[1768651854403,0.01049747,95261.0,95253.0,0.01049835]
[1768651854862,0.01049758,95260.0,95256.0,0.01049802]
[1768651856437,0.01049758,95260.0,95254.0,0.01049824]
[1768651856783,0.0104978,95258.0,95254.0,0.01049824]
[1768651857372,0.01049758,95260.0,95255.0,0.01049813]
[1768651857592,0.01049758,95260.0,95256.0,0.01049802]
[1768651858485,0.01049747,95261.0,95257.0,0.01049791]
[1768651859446,0.13769736,95262.0,95258.0,0.0104978]
[1768651860332,0.1272,95262.0,95257.0,0.01049791]
[1768651861025,0.13769736,95262.0,95258.0,0.0104978]
[1768651861254,0.13769736,95262.0,95257.0,0.01049791]
[1768651861711,0.13769736,95262.0,95258.0,0.0104978]
[1768651861910,0.01049747,95261.0,95255.0,0.01049813]
[1768651862137,0.01049747,95261.0,95256.0,0.01049802]
[1768651862673,0.01049747,95261.0,95257.0,0.03149121]
[1768651862894,0.01049758,95260.0,95257.0,0.03149121]
[1768651863337,0.13769736,95262.0,95257.0,0.04198912]
[1768651864038,0.13769736,95262.0,95258.0,0.0104978]
[1768651865366,0.13769736,95262.0,95258.0,0.04198901]
[1768651865585,0.01049747,95261.0,95258.0,0.03149121]
[1768651865807,0.01049747,95261.0,95256.0,0.01049802]
[1768651866087,0.01049747,95261.0,95257.0,0.01049791]
[1768651866305,0.01049758,95260.0,95256.0,0.03149121]
[1768651866533,0.01049747,95261.0,95257.0,0.01049791]
[1768651867384,0.06298524,95261.0,95255.0,0.01049813]
[1768651867595,0.01049758,95260.0,95258.0,0.03149121]
[1768651868043,0.01049747,95261.0,95258.0,0.03149121]
[1768651868703,0.13769736,95262.0,95258.0,0.03149121]
[1768651869352,0.0524881,95260.0,95258.0,0.03149121]
[1768651869801,0.04428684,95260.0,95258.0,0.03149121]
[1768651871112,0.01049747,95261.0,95258.0,0.03149121]
[1768651871321,0.06298527,95261.0,95258.0,0.03149121]
[1768651871749,0.01049769,95259.0,95255.0,0.01049813]
[1768651872167,0.01049758,95260.0,95255.0,0.01049813]
[1768651872736,0.01049758,95260.0,95256.0,0.01049802]
[1768651873120,0.01049747,95261.0,95257.0,0.01049791]
[1768651873316,0.01049758,95260.0,95256.0,0.01049802]
[1768651873922,0.01049747,95261.0,95257.0,0.01049791]
[1768651874327,0.13769736,95262.0,95255.0,0.01049813]
[1768651874541,0.13769736,95262.0,95256.0,0.01049802]
[1768651874542,0.19018428,95262.0,95256.0,0.01049802]
[1768651875113,0.01049769,95259.0,95255.0,0.01049813]
[1768651875676,0.19018428,95262.0,95256.0,0.01049802]
[1768651876310,0.01049769,95259.0,95255.0,0.01049813]
[1768651876507,0.05248781,95261.0,95255.0,0.01049813]
[1768651876508,0.01049758,95260.0,95255.0,0.01049813]
[1768651876922,0.01049769,95259.0,95255.0,0.01049813]
[1768651878217,0.01049758,95260.0,95256.0,0.01049802]
[1768651878423,0.01049758,95260.0,95255.0,0.01049813]
[1768651879069,0.01049769,95259.0,95255.0,0.01049813]
[1768651879494,0.01049758,95260.0,95256.0,0.01049802]
[1768651880848,0.0104978,95258.0,95254.0,0.04198945]
[1768651881067,0.01049758,95260.0,95255.0,0.01049813]
[1768651881267,0.01049769,95259.0,95254.0,0.04198945]
[1768651881743,0.0104978,95258.0,95254.0,0.04198945]
[1768651881951,0.0104978,95258.0,95254.0,0.03149121]
[1768651882382,0.0104978,95258.0,95254.0,0.01049824]
[1768651882594,0.0104978,95258.0,95254.0,0.02099604]
[1768651883254,0.0104978,95258.0,95254.0,0.0104978]
[1768651883476,0.0104978,95258.0,95252.0,0.01049846]
[1768651883477,0.01049791,95257.0,95252.0,0.01049846]
[1768651883718,0.01049791,95257.0,95254.0,0.0104978]
[1768651884162,0.0104978,95258.0,95254.0,0.0104978]
[1768651884993,0.01049791,95257.0,95254.0,0.0104978]
[1768651885425,0.0104978,95258.0,95254.0,0.0104978]
[1768651885640,0.0104978,95258.0,95254.0,0.02099604]
[1768651886079,0.01049791,95257.0,95254.0,0.0104978]
[1768651888886,0.0104978,95258.0,95254.0,0.02099604]
[1768651890158,0.01049769,95259.0,95254.0,0.0104978]
[1768651890486,0.01049758,95260.0,95255.0,0.01049813]
[1768651890919,0.01049769,95259.0,95255.0,0.01049813]
[1768651891156,0.0104978,95258.0,95254.0,0.0104978]
[1768651891293,0.01049769,95259.0,95255.0,0.01049813]
[1768651892896,0.01049769,95259.0,95254.0,0.02099604]
[1768651893308,0.01049769,95259.0,95255.0,0.01049813]
[1768651893970,0.01049769,95259.0,95254.0,0.0104978]
[1768651894187,0.01049769,95259.0,95255.0,0.01049813]
[1768651896482,0.01049769,95259.0,95254.0,0.0104978]
[1768651897111,0.0104978,95258.0,95254.0,0.02099604]
[1768651897927,0.0104978,95258.0,95254.0,0.0104978]
[1768651898152,0.0104978,95258.0,95254.0,0.02099604]
[1768651898915,0.01049791,95257.0,95254.0,0.0104978]
[1768651900035,0.0104978,95258.0,95254.0,0.02099604]
[1768651900572,0.0104978,95258.0,95254.0,0.0104978]
[1768651901142,0.01049791,95257.0,95254.0,0.0104978]
[1768651902662,0.0104978,95258.0,95254.0,0.0104978]
[1768651903448,0.0104978,95258.0,95254.0,0.02099604]
[1768651903595,0.01049791,95257.0,95254.0,0.0104978]
[1768651904620,0.0104978,95258.0,95254.0,0.0104978]
[1768651905420,0.01049791,95257.0,95254.0,0.0104978]
[1768651905628,0.0104978,95258.0,95254.0,0.02099604]
[1768651906258,0.0104978,95258.0,95254.0,0.0104978]
[1768651906788,0.0104978,95258.0,95254.0,0.02099604]
[1768651908124,0.0104978,95258.0,95254.0,0.0104978]
[1768651908328,0.01049791,95257.0,95254.0,0.0104978]
[1768651910857,0.01049813,95255.0,95249.0,0.06299264]
[1768651911066,0.01049791,95257.0,95249.0,0.06299264]
[1768651911276,0.01049802,95256.0,95252.0,0.02099703]
[1768651913284,0.01049813,95255.0,95252.0,0.01049857]
[1768651913728,0.01049802,95256.0,95252.0,0.01049857]
[1768651914145,0.06298761,95257.0,95252.0,0.02099703]
[1768651914146,0.01049791,95257.0,95252.0,0.02099703]
[1768651914569,0.01049802,95256.0,95252.0,0.01049857]
[1768651914996,0.01049791,95257.0,95252.0,0.02099703]
[1768651915205,0.01049791,95257.0,95253.0,0.01049835]
[1768651915672,0.01049802,95256.0,95252.0,0.02099703]
[1768651915888,0.01049791,95257.0,95253.0,0.01049835]
[1768651916844,0.0104978,95258.0,95253.0,0.01049835]
[1768651917533,0.01049791,95257.0,95253.0,0.01049835]
[1768651917963,0.01049791,95257.0,95252.0,0.02099703]
[1768651918145,0.01049791,95257.0,95253.0,0.01049835]
[1768651918380,0.01049802,95256.0,95252.0,0.02099703]
[1768651918598,0.01049791,95257.0,95252.0,0.02099703]
[1768651919238,0.01049802,95256.0,95252.0,0.02099703]
[1768651919661,0.01049791,95257.0,95253.0,0.01049835]
[1768651920254,0.0104978,95258.0,95254.0,0.01049824]
[1768651920470,0.0104978,95258.0,95254.0,0.01045293]
[1768651921482,0.0104978,95258.0,95253.0,0.01049835]
[1768651922003,0.0104978,95258.0,95254.0,0.01049824]
[1768651922905,0.0104978,95258.0,95253.0,0.01049835]
[1768651923107,0.01049802,95256.0,95252.0,0.01049846]
[1768651923360,0.01049802,95256.0,95251.0,0.01049857]
[1768651923577,0.0104978,95258.0,95253.0,0.01049835]
[1768651924037,0.01049791,95257.0,95253.0,0.01049835]
[1768651924879,0.01049802,95256.0,95249.0,0.03149121]
[1768651925094,0.01049802,95256.0,95249.0,0.08398509]
[1768651925306,0.01049813,95255.0,95250.0,0.01049868]
[1768651925950,0.0101033,95255.0,95251.0,0.01049857]
[1768651926271,0.00970846,95255.0,95251.0,0.01049857]
[1768651926472,0.01049802,95256.0,95252.0,0.01049846]
[1768651927223,0.01049802,95256.0,95252.0,0.01045315]
[1768651928554,0.01049791,95257.0,95252.0,0.01045315]
[1768651928783,0.01049791,95257.0,95253.0,0.01049835]
[1768651928922,0.0104978,95258.0,95253.0,0.01049835]
[1768651929294,0.01049769,95259.0,95254.0,0.01049824]
[1768651929498,0.0104978,95258.0,95254.0,0.01045293]
[1768651929856,0.01049769,95259.0,95254.0,0.01045293]
[1768651930061,0.0104978,95258.0,95253.0,0.01049835]
[1768651930257,0.06298687,95258.0,95253.0,0.01049835]
[1768651930462,0.0104978,95258.0,95253.0,0.01049835]
[1768651931087,0.01049791,95257.0,95253.0,0.01049835]
[1768651931454,0.01049802,95256.0,95251.0,0.01049857]
[1768651931654,0.01049813,95255.0,95251.0,0.01049857]
[1768651932194,0.01049802,95256.0,95251.0,0.01049857]
[1768651932341,0.01049802,95256.0,95252.0,0.01049846]
[1768651932543,0.01049791,95257.0,95253.0,0.01049835]
[1768651932767,0.0104978,95258.0,95253.0,0.01049835]
[1768651933186,0.0104978,95258.0,95254.0,0.01049824]
[1768651934558,0.01049769,95259.0,95254.0,0.01045293]
[1768651935135,0.01049769,95259.0,95255.0,0.01049813]
[1768651935473,0.01049802,95256.0,95251.0,0.05804381]
[1768651935634,0.0104978,95258.0,95252.0,0.06299079]
[1768651935859,0.0104978,95258.0,95251.0,0.05804381]
[1768651935860,0.01049802,95256.0,95251.0,0.05804381]
[1768651936042,0.01049802,95256.0,95252.0,0.01049846]
[1768651936257,0.01049791,95257.0,95251.0,0.05804381]
[1768651936465,0.01049769,95259.0,95254.0,0.01049824]
[1768651936956,0.0104978,95258.0,95253.0,0.01049835]
[1768651937161,0.01049769,95259.0,95254.0,0.01049824]
[1768651937322,0.01049769,95259.0,95255.0,0.01049813]
[1768651938308,0.01049769,95259.0,95254.0,0.01049824]
[1768651940430,0.01049769,95259.0,95255.0,0.01049813]
[1768651941220,0.0104347,95259.0,95255.0,0.01049813]
[1768651941969,0.01049758,95260.0,95256.0,0.01049802]
[1768651942483,0.01049747,95261.0,95256.0,0.01049802]
[1768651943109,0.01049758,95260.0,95256.0,0.01049802]
[1768651944353,0.01049769,95259.0,95255.0,0.01049813]
[1768651945170,0.0104978,95258.0,95254.0,0.01049824]
[1768651949643,0.01049769,95259.0,95254.0,0.01049824]
[1768651949859,0.0104978,95258.0,95252.0,0.01049846]
[1768651950074,0.01049791,95257.0,95253.0,0.01049835]
[1768651950283,0.01049769,95259.0,95254.0,0.01049824]
[1768651953090,0.01049769,95259.0,95255.0,0.01049813]
[1768651953321,0.1272,95262.0,95256.0,0.01049802]
[1768651953502,0.01049758,95260.0,95255.0,0.01049813]
[1768651953707,0.01049758,95260.0,95254.0,0.01049824]
[1768651953919,0.01049769,95259.0,95254.0,0.01049824]
[1768651954206,0.01049747,95261.0,95256.0,0.01049802]
[1768651954713,0.13769736,95262.0,95258.0,0.0104978]
[1768651954904,0.1272,95262.0,95258.0,0.0104978]
[1768651955317,0.13769736,95262.0,95258.0,0.0104978]
[1768651955495,0.13730249,95262.0,95258.0,0.0104978]
[1768651956311,0.01049747,95261.0,95257.0,0.01049791]
[1768651956509,0.12680513,95262.0,95258.0,0.0104978]
[1768651956690,0.12680513,95262.0,95259.0,0.01049769]
[1768651956890,0.12680513,95262.0,95258.0,0.0104978]
[1768651957126,0.13730249,95262.0,95258.0,0.0104978]
[1768651957329,0.01049747,95261.0,95257.0,0.01049791]
[1768651958836,0.01049758,95260.0,95256.0,0.01049802]
[1768651959456,0.01049758,95260.0,95255.0,0.01049813]
[1768651960974,0.01049769,95259.0,95255.0,0.01049813]
[1768651961816,0.01049758,95260.0,95255.0,0.01049813]
[1768651962236,0.01049769,95259.0,95255.0,0.01049813]
[1768651962436,0.01040706,95259.0,95255.0,0.01049813]
[1768651963672,0.01049758,95260.0,95255.0,0.01049813]
[1768651963906,0.01049758,95260.0,95256.0,0.01049802]
[1768651964628,0.01049758,95260.0,95255.0,0.01049813]
[1768651965060,0.01049769,95259.0,95255.0,0.01049813]
[1768651965271,0.01049758,95260.0,95255.0,0.01049813]
[1768651965481,0.01049758,95260.0,95256.0,0.01049802]
[1768651965690,0.01049758,95260.0,95255.0,0.01049813]
[1768651966208,0.01049758,95260.0,95256.0,0.01049802]
[1768651966852,0.01049758,95260.0,95255.0,0.01049813]
[1768651967068,0.01049758,95260.0,95256.0,0.01049802]
[1768651967447,0.01049747,95261.0,95257.0,0.01049791]
[1768651967672,0.06298561,95260.0,95254.0,0.01049824]
[1768651967870,0.01049758,95260.0,95255.0,0.01049813]
[1768651968058,0.01049769,95259.0,95255.0,0.01049813]
[1768651968621,0.01049747,95261.0,95256.0,0.01049802]
[1768651969679,0.01049758,95260.0,95256.0,0.01049802]
[1768651969999,0.01049747,95261.0,95257.0,0.01049791]
[1768651970202,0.01049758,95260.0,95256.0,0.01049802]
[1768651970612,0.01049769,95259.0,95255.0,0.01049813]
[1768651971370,0.01049769,95259.0,95254.0,0.01049824]
[1768651971588,0.01049769,95259.0,95255.0,0.01049813]
[1768651971933,0.01049758,95260.0,95256.0,0.01049802]
[1768651973731,0.01049747,95261.0,95257.0,0.01049791]
[1768651975550,0.01010258,95261.0,95257.0,0.01049791]
[1768651976265,0.13730249,95262.0,95257.0,0.01049791]
[1768651976890,0.01049747,95261.0,95257.0,0.01049791]
[1768651977335,0.13730249,95262.0,95258.0,0.0104978]
[1768651977336,0.12680513,95262.0,95258.0,0.0104978]
[1768651977680,0.13730249,95262.0,95258.0,0.0104978]
[1768651978812,0.12680513,95262.0,95258.0,0.0104978]
[1768651979405,0.13730249,95262.0,95258.0,0.0104978]
[1768651981497,0.13730249,95262.0,95255.0,0.01049813]
[1768651981646,0.01049747,95261.0,95255.0,0.0629887]
[1768651982150,0.01049747,95261.0,95256.0,0.01049802]
[1768651982902,0.01049758,95260.0,95256.0,0.01049802]
[1768651983134,0.01049747,95261.0,95256.0,0.01049802]
[1768651983290,0.01049747,95261.0,95257.0,0.01049791]
[1768651983657,0.1272,95266.0,95257.0,0.01049791]
[1768651984067,0.01049736,95262.0,95257.0,0.01049791]
[1768651984418,0.01049736,95262.0,95258.0,0.0104978]
[1768651984853,0.01049725,95263.0,95258.0,0.0104978]
[1768651987187,0.01049714,95264.0,95259.0,0.01049769]
[1768651987390,0.01049725,95263.0,95259.0,0.01049769]
[1768651987623,0.01049725,95263.0,95258.0,0.0104978]
[1768651988047,0.01049725,95263.0,95259.0,0.01049769]
[1768651988248,0.01049725,95263.0,95258.0,0.0104978]
[1768651989405,0.01049725,95263.0,95259.0,0.01049769]
[1768651989988,0.01049714,95264.0,95259.0,0.01049769]
[1768651990408,0.01049725,95263.0,95259.0,0.01049769]
[1768651990756,0.01049725,95263.0,95258.0,0.0104978]
[1768651992830,0.01049736,95262.0,95258.0,0.0104978]
[1768651994008,0.01049725,95263.0,95258.0,0.0104978]
[1768651994889,0.01049736,95262.0,95257.0,0.01049791]
[1768651995099,0.01049736,95262.0,95253.0,0.01049791]
[1768651995308,0.01049736,95262.0,95256.0,0.05248962]
[1768651996160,0.01049736,95262.0,95256.0,0.05248973]
[1768651996586,0.01049736,95262.0,95256.0,0.06298775]
[1768651997002,0.01049725,95263.0,95258.0,0.0104978]
[1768651998084,0.01049736,95262.0,95258.0,0.0104978]
[1768651998292,0.01049736,95262.0,95257.0,0.01049791]
[1768651998502,0.01049747,95261.0,95257.0,0.01049791]
[1768651998922,0.01049736,95262.0,95257.0,0.01049791]
[1768651999118,0.01049736,95262.0,95258.0,0.0104978]
[1768651999961,0.01049736,95262.0,95257.0,0.01049791]
[1768652000389,0.01049725,95263.0,95258.0,0.0104978]
[1768652001989,0.01049725,95263.0,95259.0,0.01049769]
[1768652002490,0.01049725,95263.0,95258.0,0.0104978]
[1768652003602,0.01049736,95262.0,95258.0,0.0104978]
[1768652005101,0.01049736,95262.0,95254.0,0.0209956]
[1768652005546,0.01049747,95261.0,95257.0,0.01049791]
[1768652005773,0.01049736,95262.0,95257.0,0.01049791]
[1768652006844,0.01049747,95261.0,95257.0,0.01049791]
[1768652007316,0.01049769,95259.0,95255.0,0.01049813]
[1768652007551,0.01049747,95261.0,95256.0,0.01049802]
[1768652007772,0.01049747,95261.0,95257.0,0.01049791]
[1768652007986,0.01049747,95261.0,95255.0,0.06298872]
[1768652007987,0.01049758,95260.0,95255.0,0.01049813]
[1768652008633,0.01049769,95259.0,95255.0,0.01049813]
[1768652008845,0.0104978,95258.0,95254.0,0.0209956]
[1768652009268,0.0104978,95258.0,95254.0,0.01049824]
[1768652010292,0.01049769,95259.0,95253.0,0.01049835]
[1768652010493,0.0104978,95258.0,95253.0,0.01049835]
[1768652010850,0.0104978,95258.0,95253.0,0.06298996]
[1768652011123,0.01049769,95259.0,95254.0,0.07348723]
[1768652012168,0.01049758,95260.0,95255.0,0.01049813]
[1768652012345,0.01049769,95259.0,95255.0,0.01049813]
[1768652012907,0.01049769,95259.0,95255.0,0.01045282]
[1768652013315,0.01049758,95260.0,95256.0,0.01049802]
[1768652013514,0.01049758,95260.0,95255.0,0.01045282]
[1768652013698,0.01049769,95259.0,95255.0,0.01045282]
[1768652014408,0.01049769,95259.0,95255.0,0.01049813]
[1768652014836,0.01049758,95260.0,95255.0,0.01049813]
[1768652015248,0.01049758,95260.0,95256.0,0.01049802]
[1768652015461,0.01049747,95261.0,95257.0,0.01049791]
[1768652016511,0.01049758,95260.0,95256.0,0.01049802]
[1768652016720,0.01049747,95261.0,95257.0,0.01049791]
[1768652016924,0.01049725,95263.0,95257.0,0.01049791]
[1768652016925,0.01049725,95263.0,95258.0,0.0104978]
[1768652017353,0.01049769,95259.0,95255.0,0.01049813]
[1768652017575,0.01049747,95261.0,95257.0,0.01049791]
[1768652018192,0.01049758,95260.0,95256.0,0.01049802]
[1768652018401,0.01049758,95260.0,95255.0,0.01049813]
[1768652020820,0.01049747,95261.0,95257.0,0.01049791]
[1768652021457,0.01049769,95259.0,95255.0,0.01049813]
[1768652021889,0.01049747,95261.0,95255.0,0.01049813]
[1768652022101,0.01049747,95261.0,95255.0,0.06298842]
[1768652022311,0.01049747,95261.0,95256.0,0.01049802]
[1768652022558,0.01049758,95260.0,95256.0,0.01049802]
[1768652022769,0.01049736,95262.0,95257.0,0.01049791]
[1768652024212,0.01049747,95261.0,95255.0,0.01049813]
[1768652024457,0.01049758,95260.0,95256.0,0.01049802]
[1768652024670,0.01049747,95261.0,95257.0,0.01049791]
[1768652026464,0.01049736,95262.0,95258.0,0.0104978]
[1768652027424,0.01049736,95262.0,95257.0,0.01049791]
[1768652029320,0.01049736,95262.0,95258.0,0.0104978]
[1768652030959,0.01049736,95262.0,95257.0,0.01049791]
[1768652033051,0.01049736,95262.0,95258.0,0.0104978]
[1768652033867,0.01049736,95262.0,95257.0,0.01049791]
[1768652034229,0.01049725,95263.0,95258.0,0.0104978]
[1768652034431,0.01049736,95262.0,95258.0,0.0104978]
[1768652035248,0.01049725,95263.0,95259.0,0.01049769]
[1768652036020,0.01049736,95262.0,95258.0,0.0104978]
[1768652036813,0.01049725,95263.0,95259.0,0.01049769]
[1768652037869,0.01049714,95264.0,95259.0,0.01049769]
[1768652038872,0.01049725,95263.0,95259.0,0.01049769]
[1768652039493,0.01049725,95263.0,95258.0,0.0104978]
[1768652040785,0.01049725,95263.0,95259.0,0.01049769]
[1768652042278,0.01049725,95263.0,95258.0,0.0104978]
[1768652043046,0.01049725,95263.0,95259.0,0.01049769]
[1768652043269,0.01049736,95262.0,95258.0,0.0104978]
[1768652044712,0.01049736,95262.0,95257.0,0.01049791]
[1768652044847,0.01049725,95263.0,95258.0,0.0104978]
[1768652045048,0.01049714,95264.0,95259.0,0.01049769]
[1768652045255,0.01049725,95263.0,95259.0,0.01049769]
[1768652045456,0.01049714,95264.0,95259.0,0.01049769]
[1768652046013,0.01049714,95264.0,95260.0,0.01049758]
[1768652046190,0.01049703,95265.0,95261.0,0.01049747]
[1768652047225,0.01049703,95265.0,95260.0,0.01049758]
[1768652047629,0.01049703,95265.0,95261.0,0.01049747]
[1768652049239,0.13769692,95266.0,95261.0,0.01049747]
[1768652049681,0.01049725,95263.0,95258.0,0.0104978]
[1768652049891,0.01049736,95262.0,95257.0,0.01049791]
[1768652050335,0.01049747,95261.0,95257.0,0.01049791]
[1768652050997,0.01049747,95261.0,95255.0,0.01049813]
[1768652051217,0.01049758,95260.0,95255.0,0.01049813]
[1768652051406,0.01049736,95262.0,95257.0,0.01049791]
[1768652051665,0.01049736,95262.0,95255.0,0.01049813]
[1768652052353,0.01049736,95262.0,95257.0,0.01049791]
[1768652053273,0.01049758,95260.0,95256.0,0.01049802]
[1768652054409,0.01049747,95261.0,95257.0,0.01049791]
[1768652055712,0.01049747,95261.0,95256.0,0.01049802]
[1768652055932,0.01049758,95260.0,95256.0,0.01049802]
[1768652056778,0.01049758,95260.0,95255.0,0.01049813]
[1768652057196,0.01049747,95261.0,95256.0,0.01049802]
[1768652057414,0.01049758,95260.0,95256.0,0.01049802]
[1768652057978,0.01049747,95261.0,95256.0,0.01049802]
[1768652058429,0.01049648,95270.0,95265.0,0.04743959]
[1768652058649,0.01049648,95270.0,95265.0,0.05585581]
[1768652058879,0.01049648,95270.0,95266.0,0.01049692]
[1768652059567,0.01069637,95271.0,95266.0,0.01049692]
[1768652059807,0.01054374,95270.0,95265.0,0.01049703]
[1768652060018,4.726e-05,95270.0,95267.0,0.04743959]
[1768652060267,0.01049626,95272.0,95269.0,0.04743959]
[1768652061111,0.01065535,95273.0,95269.0,0.05793618]
[1768652061320,0.01049626,95272.0,95269.0,0.04743959]
[1768652061536,0.01065535,95273.0,95269.0,0.04743959]
[1768652062135,0.01065535,95273.0,95268.0,0.0104967]
[1768652062343,0.01065535,95273.0,95269.0,0.01049659]
[1768652062552,0.01065535,95273.0,95268.0,0.0629802]
[1768652062756,0.0001592,95273.0,95269.0,0.01049659]
[1768652063665,0.01065535,95273.0,95269.0,0.01049659]
[1768652064282,0.01065535,95273.0,95267.0,0.01049681]
[1768652064509,0.01049626,95272.0,95268.0,0.04524874]
[1768652064742,0.06297851,95271.0,95268.0,0.04524874]
[1768652065556,0.01049637,95271.0,95268.0,0.04524874]
[1768652065986,0.05248247,95270.0,95268.0,0.04524874]
[1768652066185,0.05247966,95275.0,95268.0,0.04524874]
[1768652066400,0.05247966,95275.0,95268.0,0.09773217]
[1768652066614,0.04198171,95282.0,95273.0,0.01049615]
[1768652066859,0.06297108,95282.0,95276.0,0.01049582]
[1768652067077,0.06297108,95282.0,95275.0,0.01049593]
[1768652067078,0.01049538,95280.0,95275.0,0.01049593]
[1768652067302,0.01049538,95280.0,95273.0,0.0630241]
[1768652067303,0.01049527,95281.0,95273.0,0.01054341]
[1768652067518,0.01049538,95280.0,95275.0,0.01049593]
[1768652067720,0.01049549,95279.0,95273.0,0.06302391]
[1768652067924,0.01049549,95279.0,95275.0,0.01049593]
[1768652068353,0.0104956,95278.0,95274.0,0.05574478]
[1768652070182,0.0104956,95278.0,95274.0,0.04524874]
[1768652070528,0.0104956,95278.0,95274.0,0.05574478]
[1768652070937,0.01049571,95277.0,95274.0,0.04524874]
[1768652071074,0.01049571,95277.0,95273.0,4.726e-05]
[1768652071282,0.01049582,95276.0,95273.0,4.726e-05]
[1768652074828,0.01049571,95277.0,95273.0,4.726e-05]
[1768652075655,0.01049582,95276.0,95273.0,4.726e-05]
[1768652076071,0.01049571,95277.0,95273.0,4.726e-05]
[1768652076273,0.01049582,95276.0,95273.0,4.726e-05]
[1768652078362,0.06297501,95276.0,95273.0,4.726e-05]
[1768652078566,0.01049582,95276.0,95273.0,4.726e-05]
[1768652078946,0.01049571,95277.0,95273.0,0.01054341]
[1768652079148,0.01049582,95276.0,95273.0,4.726e-05]
[1768652079354,0.01049571,95277.0,95273.0,4.726e-05]
[1768652079355,0.01049571,95277.0,95273.0,0.01054341]
[1768652079965,0.0104956,95278.0,95273.0,0.01054341]
[1768652080645,0.01049549,95279.0,95274.0,0.01049604]
[1768652080852,0.0104956,95278.0,95273.0,0.01054341]
[1768652081460,0.0104956,95278.0,95274.0,0.01049604]
[1768652082044,0.01049571,95277.0,95273.0,0.01054341]
[1768652082663,0.0104956,95278.0,95273.0,0.01054341]
[1768652083127,0.0104956,95278.0,95274.0,0.01049604]
[1768652083352,0.01049571,95277.0,95273.0,0.01054341]
[1768652083562,0.0104956,95278.0,95273.0,0.01054341]
[1768652083979,0.0104956,95278.0,95274.0,0.01049604]
[1768652084197,0.0002,95285.0,95282.0,0.01049516]
[1768652086041,0.0002,95285.0,95281.0,0.01049527]
[1768652086246,0.01065326,95292.0,95286.0,0.01049472]
[1768652086584,0.13785326,95292.0,95287.0,0.01049461]
[1768652086787,0.01049417,95291.0,95287.0,0.0104493]
[1768652086939,0.01049417,95291.0,95286.0,0.01049472]
[1768652087368,0.01049417,95291.0,95287.0,0.01049461]
[1768652087946,0.18471391,95292.0,95288.0,0.0104945]
[1768652088405,0.01065326,95292.0,95285.0,0.01049483]
[1768652088615,0.1,95300.0,95286.0,0.01049472]
[1768652088832,0.1,95300.0,95282.0,0.02441239]
[1768652088833,0.01049384,95294.0,95288.0,0.0104945]
[1768652088985,0.01049372,95295.0,95290.0,0.01049428]
[1768652089185,0.01049372,95295.0,95288.0,0.0104945]
[1768652089389,0.01049384,95294.0,95290.0,0.01049428]
[1768652089549,0.01049384,95294.0,95288.0,0.0629665]
[1768652089550,0.01049384,95294.0,95288.0,0.01044919]
[1768652089759,0.01049395,95293.0,95289.0,0.01049372]
[1768652089962,0.01049384,95294.0,95289.0,0.01049439]
[1768652090163,0.05246741,95298.0,95289.0,0.02098834]
[1768652090367,0.01049384,95294.0,95290.0,0.01049428]
[1768652090579,0.01049384,95294.0,95290.0,0.01044897]
[1768652090797,0.11049317,95300.0,95295.0,0.01049372]
[1768652091026,0.1,95300.0,95296.0,0.01049361]
[1768652091256,0.11049317,95300.0,95295.0,0.01049372]
[1768652091475,0.01049328,95299.0,95295.0,0.01049372]
[1768652091689,0.01049328,95299.0,95296.0,0.01044854]
[1768652092782,0.1560855,95300.0,95296.0,0.01044854]
[1768652092993,0.14559233,95300.0,95296.0,0.02094215]
[1768652093204,0.1,95300.0,95297.0,0.0104935]
[1768652093499,0.1,95300.0,95295.0,0.01049372]
[1768652093500,0.04559233,95299.0,95295.0,0.01049372]
[1768652093704,0.04559233,95299.0,95294.0,0.01049384]
[1768652093705,0.01049339,95298.0,95294.0,0.01049384]
[1768652093925,0.04559233,95294.0,95290.0,0.01049428]
[1768652094134,0.04559233,95294.0,95291.0,0.01049417]
[1768652094373,0.01049372,95295.0,95291.0,0.01049417]
[1768652094589,0.01049361,95296.0,95292.0,0.01049406]
[1768652095220,0.01049372,95295.0,95291.0,0.01049417]
[1768652095439,0.01049372,95295.0,95290.0,0.01049428]
[1768652095859,0.01049384,95294.0,95290.0,0.01049428]
[1768652096070,0.01049372,95295.0,95291.0,0.01049417]
[1768652096284,0.01049372,95295.0,95290.0,0.01049428]
[1768652096497,0.01049372,95295.0,95291.0,0.01049417]
[1768652096919,0.01049372,95295.0,95290.0,0.01049428]
[1768652097123,0.01049361,95296.0,95291.0,0.01049417]
[1768652097357,0.01049372,95295.0,95291.0,0.01049417]
[1768652097810,0.06296147,95297.0,95291.0,0.01049417]
[1768652097811,0.0104935,95297.0,95292.0,0.01049406]
[1768652098030,0.01049361,95296.0,95291.0,0.01049417]
[1768652098237,0.01049372,95295.0,95290.0,0.01049428]
[1768652098930,0.04559233,95294.0,95290.0,0.01049428]
[1768652099141,0.01049372,95295.0,95290.0,0.01049428]
[1768652099346,0.01049384,95294.0,95290.0,0.01049428]
[1768652100182,0.01049395,95293.0,95289.0,0.04197136]
[1768652100418,0.01049372,95295.0,95290.0,0.01049428]
[1768652101084,0.01049384,95294.0,95290.0,0.020988]
[1768652101494,0.01049372,95295.0,95291.0,0.01049417]
[1768652101704,0.01049384,95294.0,95290.0,0.020988]
[1768652101905,0.05608605,95295.0,95291.0,0.01049417]
[1768652102113,0.04559233,95295.0,95292.0,0.01049406]
[1768652102361,0.01049361,95296.0,95292.0,0.01049406]
[1768652102994,0.05246704,95298.0,95292.0,0.01049406]
[1768652102995,0.01049339,95298.0,95293.0,0.01049395]
[1768652103201,0.0104935,95297.0,95293.0,0.01044865]
[1768652103417,0.01049361,95296.0,95292.0,0.01049406]
[1768652104234,0.01049361,95296.0,95291.0,0.01049417]
[1768652104435,0.01049372,95295.0,95291.0,0.01049417]